bitfinex-derivatives/quotes_SOLF0:USTF0_20251117
["timestamp","ask_amount","ask_price","bid_price","bid_amount"]
[1763390594005,3.14,141.5,141.33,62.0]
[1763390594204,19.22150164,141.56,141.37,19.22150164]
[1763390594205,9.5066,141.49,141.37,19.22150164]
[1763390594416,0.04733071,141.44,141.42,0.0479845]
[1763390594615,3.14,141.49,141.42,0.0479845]
[1763390594912,3.1929437,141.47,141.42,0.0479845]
[1763390595111,0.0529437,141.47,141.42,0.0479845]
[1763390595508,84.5,141.62,141.42,0.0479845]
[1763390595509,3.14,141.57,141.42,0.0479845]
[1763390595709,3.14,141.63,141.45,19.22150164]
[1763390595910,3.14,141.63,141.45,103.70150164]
[1763390596215,3.14,141.63,141.46,19.22150164]
[1763390596916,0.0459675,141.56,141.53,0.04517096]
[1763390597121,0.05332559,141.56,141.53,0.05207185]
[1763390599820,0.05332559,141.56,141.41,85.02]
[1763390599821,3.11332559,141.56,141.44,84.38]
[1763390600116,3.06,141.61,141.44,84.38]
[1763390600315,3.06,141.66,141.47,37.48629175]
[1763390600517,3.06,141.66,141.51,31.11899175]
[1763390600915,0.05042871,141.6,141.57,0.05103832]
[1763390601214,0.05042871,141.6,141.57,0.04544]
[1763390601215,0.04557611,141.6,141.57,0.04544]
[1763390602017,9.46737611,141.6,141.48,84.32]
[1763390602316,3.06,141.59,141.47,31.11899175]
[1763390602711,3.06,141.59,141.39,31.11899175]
[1763390602908,3.06,141.59,141.22,297.6661]
[1763390602909,3.11166489,141.5,141.48,0.0464021]
[1763390603213,3.06,141.53,141.39,31.11899175]
[1763390603603,98.9487,141.62,141.39,31.11899175]
[1763390603604,3.06,141.58,141.42,6.3695]
[1763390603804,3.06,141.58,141.4,31.11899175]
[1763390604025,0.04607686,141.5,141.48,0.05304326]
[1763390604327,3.10646982,141.5,141.48,0.0500875]
[1763390604616,9.47266982,141.5,141.35,31.11899175]
[1763390604810,3.06,141.5,141.35,31.11899175]
[1763390605006,3.06,141.5,141.34,31.11899175]
[1763390605719,9.4236,141.56,141.42,31.11899175]
[1763390605920,98.9422,141.63,141.4,31.11899175]
[1763390605921,3.06,141.55,141.4,31.11899175]
[1763390606313,3.06,141.54,141.4,31.11899175]
[1763390606514,84.26,141.65,141.4,31.11899175]
[1763390606810,0.04988213,141.54,141.51,0.04735291]
[1763390607018,0.04956905,141.54,141.51,0.05409062]
[1763390607914,4.68,141.53,141.39,31.11899175]
[1763390608118,3.26,141.63,141.43,31.11899175]
[1763390608413,3.26,141.63,141.36,99.1219]
[1763390608608,3.26,141.61,141.44,31.11899175]
[1763390608804,0.05144733,141.54,141.51,0.04731456]
[1763390609025,0.04850476,141.54,141.51,0.04620422]
[1763390609517,3.26,141.68,141.51,6.41180422]
[1763390609708,3.26,141.77,141.56,31.11899175]
[1763390609908,3.26,141.77,141.6,31.11899175]
[1763390610215,3.26,141.77,141.6,115.33899175]
[1763390610606,0.04932789,141.7,141.67,0.05277502]
[1763390610806,3.31155574,141.7,141.67,0.05153742]
[1763390611008,3.26,141.69,141.67,0.05153742]
[1763390611211,0.05155574,141.7,141.67,0.05153742]
[1763390611416,3.31155574,141.7,141.67,0.05153742]
[1763390611720,4.73155574,141.7,141.67,0.05153742]
[1763390611914,0.05155574,141.7,141.67,0.05153742]
[1763390612615,3.26,141.81,141.67,0.05153742]
[1763390612812,3.26,141.81,141.64,31.11899175]
[1763390613219,6.3545,141.76,141.64,93.11899175]
[1763390613416,3.26,141.81,141.64,62.0]
[1763390613617,3.26,141.73,141.71,0.0538096]
[1763390613821,3.30638695,141.73,141.71,0.04609005]
[1763390614024,3.26,141.71,141.54,31.11899175]
[1763390614419,6.3581,141.68,141.54,37.48289175]
[1763390614719,3.26,141.8,141.58,31.11899175]
[1763390615024,3.30666651,141.7,141.55,31.11899175]
[1763390615217,3.26,141.7,141.55,31.11899175]
[1763390615414,6.3591,141.66,141.55,31.11899175]
[1763390615616,3.26,141.7,141.45,84.9]
[1763390615810,3.26,141.7,141.51,31.11899175]
[1763390616010,98.8808,141.72,141.59,0.04696353]
[1763390616011,0.0461754,141.62,141.59,0.04696353]
[1763390616217,0.04490322,141.62,141.59,0.04758542]
[1763390617316,3.30490322,141.62,141.47,115.23899175]
[1763390617517,3.26,141.62,141.47,115.23899175]
[1763390617826,3.26,141.62,141.48,31.11899175]
[1763390618032,6.3613,141.61,141.48,37.48569175]
[1763390618323,0.04933905,141.56,141.53,0.04842623]
[1763390618521,0.04815571,141.56,141.53,0.04802277]
[1763390618915,3.30815571,141.56,141.53,0.04802277]
[1763390619116,6.3643,141.54,141.45,84.9]
[1763390619315,3.26,141.56,141.45,84.9]
[1763390619529,6.3649,141.53,141.45,84.9]
[1763390619721,3.26,141.56,141.44,31.11899175]
[1763390620116,302.88231307,141.81,141.49,0.05253967]
[1763390620117,3.26,141.61,141.49,0.05253967]
[1763390620316,3.26,141.61,141.48,31.11899175]
[1763390620713,3.26,141.61,141.44,31.11899175]
[1763390621221,3.26,141.5,141.36,31.11899175]
[1763390621424,0.04852462,141.44,141.42,0.05000329]
[1763390621621,0.04548651,141.44,141.42,0.05000329]
[1763390622320,3.26,141.53,141.42,0.05000329]
[1763390622621,3.26,141.52,141.36,31.11899175]
[1763390623324,0.04571702,141.45,141.43,0.05196634]
[1763390623524,0.04571702,141.45,141.33,31.11899175]
[1763390623525,3.30744601,141.45,141.33,31.11899175]
[1763390623725,3.26,141.45,141.33,31.11899175]
[1763390624024,3.26,141.45,141.33,37.49239175]
[1763390624220,3.26,141.45,141.31,62.0]
[1763390624623,0.04780187,141.39,141.37,0.04654892]
[1763390624930,0.04621214,141.39,141.37,0.04654892]
[1763390625128,0.04621214,141.39,141.25,31.11899175]
[1763390625129,4.72621214,141.39,141.25,31.11899175]
[1763390625319,3.26,141.39,141.25,31.11899175]
[1763390625515,6.3692,141.44,141.3,6.3748]
[1763390625721,3.26,141.44,141.29,31.11899175]
[1763390626020,6.3705,141.41,141.29,31.11899175]
[1763390626222,0.05361235,141.36,141.34,0.05402125]
[1763390626414,0.04804546,141.36,141.34,0.05344959]
[1763390626617,3.26,141.46,141.34,0.05344959]
[1763390626825,3.26,141.46,141.29,31.11899175]
[1763390627023,98.9862,141.57,141.29,31.11899175]
[1763390627024,3.26,141.51,141.33,31.11899175]
[1763390627224,3.26,141.51,141.37,31.11899175]
[1763390627426,3.26,141.51,141.22,99.2223]
[1763390627628,6.3684,141.45,141.34,6.3729]
[1763390627830,0.0514447,141.41,141.38,0.05298959]
[1763390628128,0.0514447,141.41,141.38,0.0459363]
[1763390628129,3.26,141.4,141.38,0.0459363]
[1763390628324,4.68,141.4,141.27,31.11899175]
[1763390628530,3.26,141.4,141.23,31.11899175]
[1763390628731,3.26,141.39,141.25,6.377]
[1763390628920,3.26,141.39,141.23,31.11899175]
[1763390629235,0.05099491,141.32,141.3,0.05223814]
[1763390629533,3.26,141.38,141.23,31.11899175]
[1763390629730,0.04643607,141.3,141.27,0.04957633]
[1763390630025,0.04698151,141.3,141.27,0.04528641]
[1763390630632,0.04698151,141.3,141.18,31.11899175]
[1763390630633,4.72698151,141.3,141.18,31.11899175]
[1763390630932,3.26,141.36,141.18,31.11899175]
[1763390631332,6.3737,141.34,141.23,6.3779]
[1763390631517,3.26,141.36,141.22,31.11899175]
[1763390631718,0.0460563,141.3,141.28,0.04865505]
[1763390631926,0.04845485,141.3,141.28,0.04865505]
[1763390632135,4.72845485,141.3,141.19,62.0]
[1763390632432,3.26,141.31,141.19,6.3798]
[1763390632624,3.26,141.31,141.18,31.11899175]
[1763390632825,6.43201307,141.48,141.13,84.84]
[1763390632826,3.26,141.36,141.25,6.3769]
[1763390633128,0.05204789,141.32,141.29,0.04799497]
[1763390633324,3.31204789,141.32,141.29,0.04799497]
[1763390633522,3.31204789,141.32,141.2,6.3794]
[1763390633732,3.31204789,141.32,141.19,84.1]
[1763390633733,3.26,141.32,141.19,84.1]
[1763390633924,3.26,141.37,141.19,84.1]
[1763390634238,3.26,141.37,141.22,31.11899175]
[1763390634530,0.05442287,141.31,141.28,0.04818126]
[1763390634730,0.05076747,141.31,141.28,0.05048452]
[1763390634928,3.31076747,141.31,141.28,0.05048452]
[1763390635128,0.05076747,141.31,141.28,0.05048452]
[1763390636528,0.05076747,141.31,141.29,6.3753]
[1763390636837,3.26,141.45,141.28,0.05048452]
[1763390637039,6.3709,141.4,141.24,31.11899175]
[1763390637230,3.26,141.45,141.21,183.3295]
[1763390637231,3.26,141.45,141.28,31.11899175]
[1763390637728,0.04720894,141.38,141.35,0.04759538]
[1763390638136,3.16720894,141.38,141.35,0.04759538]
[1763390638725,6.3727,141.36,141.25,31.11899175]
[1763390638937,9.4927,141.36,141.25,31.11899175]
[1763390639637,0.05128514,141.32,141.29,0.05073654]
[1763390639836,0.05413443,141.32,141.29,0.04959806]
[1763390641031,3.12,141.44,141.29,1.46959806]
[1763390641241,3.12,141.44,141.29,31.11899175]
[1763390642134,0.04531242,141.38,141.35,0.05103984]
[1763390642337,0.04818923,141.38,141.35,0.0490978]
[1763390642930,3.12,141.36,141.35,0.0490978]
[1763390643134,3.16818923,141.38,141.35,0.0490978]
[1763390643541,3.16818923,141.38,141.18,112.0092]
[1763390643542,3.12,141.36,141.23,31.11899175]
[1763390643740,3.12,141.35,141.15,31.11899175]
[1763390644535,3.16750458,141.26,141.24,0.05407322]
[1763390644743,3.17220295,141.26,141.24,0.05354113]
[1763390644940,0.05220295,141.26,141.24,0.05354113]
[1763390645733,3.17220295,141.26,141.15,31.11899175]
[1763390646034,3.12,141.26,141.17,6.3807]
[1763390646240,3.12,141.26,141.15,31.11899175]
[1763390646832,3.17290921,141.22,141.09,31.11899175]
[1763390647143,3.12,141.22,141.09,31.11899175]
[1763390647638,6.3818,141.16,141.05,31.11899175]
[1763390647841,3.12,141.17,141.01,84.04]
[1763390648146,0.04460573,141.12,141.06,6.3857]
[1763390648336,0.04460573,141.12,141.02,31.11899175]
[1763390648539,0.05270252,141.08,141.02,31.11899175]
[1763390648735,31.11899175,141.27,141.02,31.11899175]
[1763390648934,198.2752,141.35,141.02,31.11899175]
[1763390648935,3.12,141.22,141.1,31.11899175]
[1763390649443,3.12,141.28,141.1,31.11899175]
[1763390649642,3.12,141.28,141.04,99.3486]
[1763390649643,3.12,141.28,141.14,31.11899175]
[1763390649846,3.12,141.21,141.2,0.04489884]
[1763390650153,0.05172592,141.22,141.19,0.04489884]
[1763390650441,0.05281019,141.22,141.19,0.04489884]
[1763390650645,3.12,141.31,141.19,0.04489884]
[1763390650943,3.12,141.31,141.18,31.11899175]
[1763390651640,0.05267103,141.26,141.23,0.04789824]
[1763390651853,3.12,141.25,141.14,31.11899175]
[1763390652042,3.12,141.35,141.14,31.11899175]
[1763390652240,3.12,141.29,141.16,6.3813]
[1763390652447,3.12,141.29,141.14,31.11899175]
[1763390652840,6.376,141.28,141.14,31.11899175]
[1763390653043,0.05384882,141.23,141.2,0.04413568]
[1763390653346,3.1710371,141.23,141.2,0.04413568]
[1763390653937,3.1710371,141.23,141.11,31.11899175]
[1763390653938,3.12,141.21,141.11,31.11899175]
[1763390654141,3.12,141.21,141.07,115.15899175]
[1763390654355,3.12,141.21,141.07,31.11899175]
[1763390654544,3.12,141.21,141.03,31.11899175]
[1763390654846,3.12,141.21,140.94,237.29664239]
[1763390654847,0.05026815,141.13,140.99,31.11899175]
[1763390655044,0.05231806,141.07,140.99,31.11899175]
[1763390655537,3.12,141.19,141.03,31.11899175]
[1763390655946,3.12,141.19,141.06,6.3857]
[1763390655947,6.3808,141.18,141.06,6.3857]
[1763390656143,3.15,141.18,141.03,31.11899175]
[1763390656443,6.3822,141.15,141.04,6.3867]
[1763390656644,3.15,141.18,141.04,6.3867]
[1763390656843,0.04730314,141.11,141.08,0.0501013]
[1763390657042,0.04730314,141.11,141.08,0.05003141]
[1763390657043,0.04573905,141.11,141.08,0.05003141]
[1763390657542,0.04573905,141.11,141.08,6.43473141]
[1763390657742,0.04573905,141.11,141.08,0.05003141]
[1763390658552,3.19573905,141.11,141.08,0.05003141]
[1763390658746,3.15,141.1,140.98,19.20808591]
[1763390659145,3.15,141.1,140.98,25.59768591]
[1763390659345,3.15,141.1,140.98,19.20808591]
[1763390659852,0.04893629,141.05,141.01,6.388]
[1763390660057,0.04893629,141.05,140.98,81.20808591]
[1763390660250,0.04893629,141.05,140.98,19.20808591]
[1763390660655,0.04893629,141.05,140.99,6.389]
[1763390660840,0.04893629,141.05,140.98,19.20808591]
[1763390661154,0.04893629,141.05,140.94,84.96]
[1763390661453,0.05107856,141.01,140.98,19.20808591]
[1763390661652,0.04844354,141.01,140.99,6.3889]
[1763390661855,3.15,141.1,140.98,19.20808591]
[1763390662243,3.15,141.1,141.02,6.3874]
[1763390662447,3.15,141.1,140.98,19.20808591]
[1763390662946,0.05380035,141.05,141.03,0.05073019]
[1763390663146,3.19822135,141.05,141.03,0.05073019]
[1763390663745,0.04822135,141.05,141.03,0.05073019]
[1763390664453,3.19822135,141.05,141.03,0.05073019]
[1763390664652,3.19822135,141.05,140.95,19.20808591]
[1763390664954,3.15,141.05,140.95,19.20808591]
[1763390665348,3.15,141.1,141.0,6.3883]
[1763390665550,0.04485552,141.06,140.97,19.20808591]
[1763390665756,0.04798048,141.03,140.93,19.20808591]
[1763390666062,0.04623575,140.99,140.84,12.7918]
[1763390666246,3.15,141.04,140.92,19.20808591]
[1763390666958,3.15,141.02,140.92,6.3921]
[1763390667255,3.15,141.02,140.96,0.04675826]
[1763390667560,3.15,141.02,140.87,19.20808591]
[1763390667751,3.33,141.09,140.91,19.20808591]
[1763390668256,3.33,141.09,140.95,19.20808591]
[1763390668453,0.04514642,141.03,140.95,19.20808591]
[1763390668856,0.04514642,141.03,140.95,103.22808591]
[1763390669052,0.04514642,141.03,141.01,6.388]
[1763390669252,3.33,141.14,140.99,19.20808591]
[1763390670151,0.05051367,141.08,141.05,0.04514642]
[1763390670355,0.04980679,141.08,141.05,0.04514642]
[1763390670955,3.33,141.07,140.87,5.99666549]
[1763390671157,9.7162,141.06,140.94,19.20808591]
[1763390671353,3.33,141.06,140.95,62.0]
[1763390671749,6.3867,141.05,140.96,6.3903]
[1763390671949,0.04943699,141.02,140.96,6.3903]
[1763390672164,0.04943699,141.02,140.95,62.0]
[1763390672660,3.33,141.11,140.98,19.20808591]
[1763390672863,9.7143,141.1,140.99,6.389]
[1763390673158,3.33,141.1,140.98,19.20808591]
[1763390673359,6.3875,141.03,140.94,19.20808591]
[1763390673566,3.33,141.04,140.94,19.20808591]
[1763390673767,3.33,141.04,140.98,0.04943699]
[1763390673768,0.051531,141.0,140.98,0.04943699]
[1763390674160,3.33,141.17,140.99,19.20808591]
[1763390674459,3.33,141.16,141.03,19.20808591]
[1763390675062,0.05386501,141.11,141.08,0.04908465]
[1763390675260,3.33,141.27,141.07,19.20808591]
[1763390675460,6.3777,141.25,141.13,19.20808591]
[1763390675657,6.3777,141.25,141.03,12.7738]
[1763390675658,3.33,141.25,141.03,12.7738]
[1763390675860,3.33,141.25,141.13,19.20808591]
[1763390676059,3.33,141.25,141.13,25.59078591]
[1763390676266,3.33,141.25,141.13,19.20808591]
[1763390676467,99.189,141.28,140.99,9.04519175]
[1763390676468,3.33,141.19,141.08,19.20808591]
[1763390677065,6.3819,141.15,141.08,19.20808591]
[1763390677363,3.33,141.19,140.98,85.12]
[1763390677364,0.04930438,141.13,141.1,0.04819021]
[1763390677666,3.33,141.11,141.0,19.20808591]
[1763390678170,3.33,141.16,141.01,6.3882]
[1763390678470,0.05253064,141.1,141.07,0.05371007]
[1763390678657,3.37819227,141.1,141.07,0.0510682]
[1763390678865,3.33,141.09,141.0,19.20808591]
[1763390679456,9.7146,141.09,140.98,85.12]
[1763390679659,3.33,141.09,140.98,85.12]
[1763390679860,3.33,141.09,140.96,25.59858591]
[1763390679861,0.04507598,141.05,140.96,25.59858591]
[1763390680167,0.04751453,141.02,140.96,19.20808591]
[1763390681369,0.04751453,141.02,140.96,25.59808591]
[1763390681669,0.04751453,141.02,140.95,2.03003734]
[1763390682358,0.04751453,141.02,140.96,19.20808591]
[1763390682867,0.04751453,141.02,140.95,2.03003734]
[1763390683070,0.04751453,141.02,140.95,21.23812325]
[1763390683275,0.04751453,141.02,140.96,62.0]
[1763390683571,0.04751453,141.02,140.97,19.20808591]
[1763390683772,0.04751453,141.02,140.95,2.03003734]
[1763390684169,0.04751453,141.02,140.97,19.20808591]
[1763390684872,0.04751453,141.02,140.95,2.03003734]
[1763390685673,3.37751453,141.02,140.95,2.03003734]
[1763390685877,3.37751453,141.02,140.82,85.1]
[1763390686078,0.05417778,140.93,140.86,19.20808591]
[1763390686277,3.33,140.99,140.82,85.1]
[1763390686570,99.3624,141.03,140.83,19.20808591]
[1763390686571,3.33,140.95,140.83,19.20808591]
[1763390686771,0.05404014,140.92,140.87,19.20808591]
[1763390686971,0.05187268,140.91,140.85,19.20808591]
[1763390687176,3.33,140.99,140.85,19.20808591]
[1763390687571,3.33,140.99,140.89,6.3933]
[1763390688070,3.33,140.99,140.86,6.3946]
[1763390688277,0.0486629,140.94,140.91,0.0477638]
[1763390688878,3.33,141.04,140.91,0.0477638]
[1763390689084,3.33,141.04,140.89,19.20808591]
[1763390689085,6.3895,140.99,140.89,19.20808591]
[1763390689376,9.7195,140.99,140.89,19.20808591]
[1763390689574,3.33,140.98,140.89,19.20808591]
[1763390689773,9.7199,140.98,140.89,19.20808591]
[1763390689975,0.05316151,140.95,140.92,0.05369122]
[1763390690375,3.38316151,140.95,140.92,0.05369122]
[1763390690768,0.05316151,140.95,140.92,0.05369122]
[1763390690969,3.38316151,140.95,140.92,0.05369122]
[1763390692371,118.54258591,141.07,140.92,0.05369122]
[1763390692372,9.7158,141.07,140.95,6.3908]
[1763390692575,3.33,141.07,140.94,19.20808591]
[1763390692776,3.33,141.07,140.98,19.20808591]
[1763390693293,0.04992317,141.04,141.01,0.04743159]
[1763390693485,0.05429689,141.04,141.01,0.04825687]
[1763390694878,3.38429689,141.04,141.01,0.04825687]
[1763390696282,0.05429689,141.04,141.01,0.04825687]
[1763390696586,3.38429689,141.04,141.01,0.04825687]
[1763390697582,3.17,141.03,140.94,19.20808591]
[1763390697887,3.17,141.14,140.94,19.20808591]
[1763390698091,3.17,141.07,140.94,19.20808591]
[1763390698388,3.17,141.07,140.98,19.20808591]
[1763390698884,0.05255033,141.04,141.01,0.05038699]
[1763390699289,0.05255033,141.04,141.01,6.43838699]
[1763390699482,0.05255033,141.04,141.01,0.05038699]
[1763390700990,3.22255033,141.04,141.01,0.05038699]
[1763390701486,3.22255033,141.04,140.93,19.20808591]
[1763390701692,3.17,141.04,140.93,19.20808591]
[1763390701987,3.17,141.04,140.88,6.2871132]
[1763390701988,3.17,140.99,140.89,19.20808591]
[1763390702495,3.17,141.1,140.89,19.20808591]
[1763390702696,3.17,141.03,140.93,19.20808591]
[1763390702895,0.05069644,141.01,140.99,6.3889]
[1763390703091,3.17,141.18,140.97,19.20808591]
[1763390703292,3.17,141.18,141.01,19.20808591]
[1763390703601,3.17,141.18,141.01,81.20808591]
[1763390703792,3.17,141.18,141.05,19.20808591]
[1763390703993,3.17,141.17,141.05,19.20808591]
[1763390704297,3.17,141.12,141.01,81.20808591]
[1763390704997,3.17,141.17,141.05,19.20808591]
[1763390705301,0.05304438,141.12,141.1,0.0527214]
[1763390705598,3.22265374,141.12,141.1,0.0527214]
[1763390705896,0.05265374,141.12,141.1,0.0527214]
[1763390706195,3.17,141.22,141.1,1.4727214]
[1763390706390,3.17,141.22,141.13,19.20808591]
[1763390706589,6.3771,141.26,141.13,19.20808591]
[1763390706791,6.3771,141.26,141.06,99.335]
[1763390706792,3.17,141.26,141.06,6.2871132]
[1763390707102,3.17,141.15,141.05,19.20808591]
[1763390707391,0.04642718,141.11,141.09,0.04993328]
[1763390707792,3.21642718,141.11,141.09,0.04993328]
[1763390707998,3.21642718,141.11,141.01,19.20808591]
[1763390708306,3.17,141.15,141.01,19.20808591]
[1763390708800,3.17,141.13,141.01,19.20808591]
[1763390709000,3.22316595,141.08,141.06,0.0489152]
[1763390709199,3.22184605,141.08,140.96,25.59818591]
[1763390709392,3.17,141.08,140.96,25.59818591]
[1763390709590,3.17,141.08,140.96,19.20808591]
[1763390709796,99.2846,141.14,140.89,31.88859911]
[1763390709797,9.5586,141.01,140.89,31.88859911]
[1763390709994,9.5586,141.01,140.89,19.20808591]
[1763390709995,3.17,141.01,140.89,19.20808591]
[1763390710193,0.04911511,140.96,140.89,19.20808591]
[1763390710594,3.21911511,140.96,140.83,83.68]
[1763390710806,0.04673806,140.91,140.83,102.88808591]
[1763390710989,0.04673806,140.91,140.87,19.20808591]
[1763390711194,0.04673806,140.91,140.83,102.88808591]
[1763390711388,0.04673806,140.91,140.83,19.20808591]
[1763390711808,0.04673806,140.91,140.84,6.3957]
[1763390711993,0.04673806,140.91,140.83,19.20808591]
[1763390712504,0.04673806,140.91,140.84,6.3959]
[1763390712804,3.17,141.02,140.91,6.3924]
[1763390713001,3.17,141.02,140.87,19.20808591]
[1763390713002,3.17,141.02,140.92,19.20808591]
[1763390713210,102.4809,141.1,140.92,19.20808591]
[1763390713411,3.17,141.06,140.88,19.20808591]
[1763390713704,3.17,141.0,140.88,19.20808591]
[1763390713897,0.05279292,140.95,140.93,0.04568123]
[1763390714096,0.05243136,140.95,140.93,0.04568123]
[1763390714700,3.17,141.1,140.94,1.42]
[1763390714902,3.17,141.1,140.97,19.20808591]
[1763390715107,3.17,141.09,140.97,19.20808591]
[1763390715606,0.04997057,141.04,141.02,0.04782481]
[1763390715911,3.35193703,141.04,141.02,0.04782481]
[1763390716199,0.05193703,141.04,141.02,0.04782481]
[1763390716603,3.3,141.14,141.02,1.46782481]
[1763390716802,9.6827,141.14,141.01,25.59588591]
[1763390716996,3.3,141.14,141.01,19.20808591]
[1763390717494,0.05361977,141.09,141.06,0.05392723]
[1763390717891,182.8505,141.25,141.06,0.05392723]
[1763390717892,6.3805,141.19,141.06,6.43942723]
[1763390718095,3.3,141.18,141.06,6.3855]
[1763390718607,3.3,141.18,141.05,19.20808591]
[1763390718905,3.3,141.18,141.03,83.62]
[1763390718906,3.3,141.18,141.06,31.29985258]
[1763390719105,0.04578563,141.13,141.1,0.04596184]
[1763390719398,3.34578563,141.13,141.1,0.04596184]
[1763390719599,0.04578563,141.13,141.1,0.04596184]
[1763390721600,6.3787,141.22,141.11,6.3833]
[1763390721794,3.3,141.23,141.1,62.0]
[1763390722206,3.3,141.27,141.15,6.3815]
[1763390722504,3.3,141.27,141.13,31.29985258]
[1763390722812,99.1165,141.38,141.2,0.0449518]
[1763390722813,0.05278553,141.22,141.2,0.0449518]
[1763390723008,0.04470593,141.22,141.2,0.04797648]
[1763390723905,3.3,141.32,141.2,1.46797648]
[1763390724103,3.3,141.32,141.17,31.29985258]
[1763390724504,3.3,141.37,141.21,31.29985258]
[1763390724711,3.3,141.37,141.25,31.29985258]
[1763390724908,0.04558592,141.32,141.3,0.0481408]
[1763390725104,3.347409,141.32,141.3,0.0487323]
[1763390725308,0.047409,141.32,141.3,0.0487323]
[1763390725503,3.3,141.43,141.3,0.0487323]
[1763390725802,3.3,141.43,141.26,31.29985258]
[1763390726405,6.3706,141.4,141.26,31.29985258]
[1763390726605,3.34977498,141.36,141.33,0.05061497]
[1763390726906,0.05228338,141.36,141.33,0.0510751]
[1763390727306,3.35228338,141.36,141.33,0.0510751]
[1763390727514,3.35228338,141.36,141.26,31.29985258]
[1763390727515,4.72,141.35,141.22,31.29985258]
[1763390727718,4.72,141.35,141.15,31.29985258]
[1763390727719,3.3,141.34,141.15,31.29985258]
[1763390728106,130.41675258,141.38,141.15,31.29985258]
[1763390728107,3.3,141.28,141.15,37.68135258]
[1763390728612,31.29985258,141.38,141.15,31.29985258]
[1763390728817,3.3,141.34,141.19,31.29985258]
[1763390729118,0.04900257,141.28,141.25,0.04631612]
[1763390729322,0.04605012,141.28,141.25,0.04727517]
[1763390729704,3.3,141.44,141.27,31.29985258]
[1763390730015,102.3109,141.53,141.31,31.29985258]
[1763390730206,3.3,141.51,141.3,31.29985258]
[1763390730409,3.3,141.42,141.3,31.29985258]
[1763390730608,3.3,141.42,141.28,83.4]
[1763390730813,6.3733,141.34,141.21,31.29985258]
[1763390731106,3.3,141.34,141.21,31.29985258]
[1763390731316,3.3,141.34,141.11,6.2871132]
[1763390731317,3.3,141.3,141.17,31.29985258]
[1763390731711,3.3,141.3,141.13,114.67985258]
[1763390731907,3.3,141.3,141.2,0.04594725]
[1763390731908,0.05140695,141.23,141.2,0.04594725]
[1763390732105,0.05140695,141.23,141.2,0.04606073]
[1763390732106,0.04582656,141.23,141.2,0.04606073]
[1763390732516,3.3,141.3,141.2,0.04606073]
[1763390732713,3.3,141.3,141.11,99.2997]
[1763390732714,3.3,141.3,141.11,83.36]
[1763390732908,3.3,141.3,141.11,114.65985258]
[1763390733109,6.378,141.24,141.11,114.65985258]
[1763390733411,3.3,141.34,141.15,31.29985258]
[1763390733614,0.05197751,141.26,141.23,0.04801885]
[1763390733811,0.05140374,141.26,141.23,0.04467984]
[1763390734713,3.3,141.33,141.23,0.04467984]
[1763390734908,3.3,141.33,141.19,31.29985258]
[1763390735114,3.3,141.38,141.19,31.29985258]
[1763390735305,3.3,141.38,141.15,99.2707]
[1763390735306,3.3,141.38,141.23,31.29985258]
[1763390735509,3.3,141.38,141.17,12.7618]
[1763390735510,3.3,141.38,141.22,31.29985258]
[1763390735705,3.3,141.38,141.29,0.05371718]
[1763390735706,0.05291041,141.31,141.29,0.05371718]
[1763390735907,3.3,141.45,141.29,0.04622217]
[1763390736110,6.3696,141.43,141.32,6.374]
[1763390736305,3.3,141.43,141.26,31.29985258]
[1763390736519,3.3,141.43,141.3,31.29985258]
[1763390736919,3.34552419,141.38,141.35,0.05233311]
[1763390737116,3.35426157,141.38,141.35,0.05339166]
[1763390737619,0.05426157,141.38,141.35,0.05339166]
[1763390738712,3.3,141.43,141.35,0.05339166]
[1763390738914,3.3,141.48,141.35,0.05339166]
[1763390739209,3.3,141.48,141.36,6.3721]
[1763390739415,3.3,141.48,141.34,31.29985258]
[1763390739725,0.05302458,141.42,141.4,0.04623019]
[1763390739923,0.04643874,141.42,141.4,0.04623019]
[1763390740109,3.34643874,141.42,141.4,0.04623019]
[1763390741219,0.04643874,141.42,141.4,0.04623019]
[1763390741719,3.34643874,141.42,141.4,0.04623019]
[1763390742021,3.34643874,141.42,141.29,31.29985258]
[1763390742321,3.3,141.4,141.25,31.29985258]